fUST/lending_fUST_20240323
["ID","MTS","AMOUNT","RATE_DAILY","PERIOD"]
[320076305,1711139438659,-500.0,0.00024657,2]
[320076306,1711139438670,-2501.98,0.00024657,2]
[320076307,1711139438679,-1586.3,0.00024657,2]
[320076308,1711139438689,-500.0,0.00024657,2]
[320076309,1711139438698,-1112.23,0.00024657,2]
[320076310,1711139438707,-15833.72,0.00024657,2]
[320076311,1711139438717,-500.0,0.00024657,2]
[320076312,1711139438728,-500.0,0.00024657,2]
[320076313,1711139438738,-629.98,0.00024657,2]
[320076314,1711139438750,-500.0,0.00024657,2]
[320076315,1711139438758,-500.0,0.00024657,2]
[320076316,1711139438768,-500.0,0.00024657,2]
[320076317,1711139438778,-500.0,0.00024657,2]
[320076318,1711139438787,-1472.74,0.00024657,2]
[320076319,1711139438796,-3736.69,0.00024657,2]
[320076320,1711139438805,-500.0,0.00024657,2]
[320076321,1711139438815,-1155.26,0.00024657,2]
[320076322,1711139438826,-500.0,0.00024657,2]
[320076323,1711139438835,-500.0,0.00024657,2]
[320076324,1711139438844,-500.0,0.00024657,2]
[320076325,1711139438853,-500.0,0.00024657,2]
[320076326,1711139438862,-1173.64,0.00024657,2]
[320076327,1711139438872,-20662.85,0.00024657,2]
[320076328,1711139438881,-500.0,0.00024657,2]
[320076329,1711139438892,-1265.28,0.00024657,2]
[320076330,1711139438902,-500.0,0.00024657,2]
[320076331,1711139438911,-451.63017508,0.00024657,2]
[320076332,1711139438920,-500.0,0.00024657,2]
[320076333,1711139438929,-235.68536284,0.00024777,2]
[320076334,1711139438938,-945.72856502,0.00024831,2]
[320076335,1711139438947,-945.72856502,0.00025105,2]
[320076336,1711139438956,-1380.57420865,0.00025203,2]
[320076337,1711139438965,-252.28691214,0.00025204,2]
[320076338,1711139438974,-234.7111418,0.00025204,2]
[320076339,1711139438984,-500.0,0.00025204,2]
[320076340,1711139438996,-15955.28,0.00025204,2]
[320076341,1711139439006,-500.0,0.00025204,2]
[320076342,1711139439015,-500.0,0.00025205,2]
[320076343,1711139439024,-500.0,0.00025205,2]
[320076344,1711139439033,-500.0,0.00025205,2]
[320076345,1711139439042,-528.14,0.00025205,2]
[320076346,1711139439051,-500.0,0.00025205,2]
[320076347,1711139439060,-498.69575726,0.00025205,2]
[320076348,1711139439072,-829.22,0.00025205,2]
[320076349,1711139439081,-500.0,0.00025205,2]
[320076350,1711139439090,-500.0,0.00025205,2]
[320076351,1711139439099,-500.0,0.00025205,2]
[320076352,1711139439109,-500.0,0.00025205,2]
[320076353,1711139439119,-500.0,0.00025205,2]
[320076354,1711139439129,-1368.07,0.00025205,2]
[320076355,1711139439138,-500.0,0.00025205,2]
[320076356,1711139439148,-552.16,0.00025205,2]
[320076357,1711139439157,-532.94,0.00025205,2]
[320076358,1711139439167,-500.0,0.00025205,2]
[320076359,1711139439176,-500.0,0.00025205,2]
[320076360,1711139439186,-500.0,0.00025205,2]
[320076361,1711139439196,-582.28,0.00025205,2]
[320076362,1711139439205,-633.51,0.00025205,2]
[320076363,1711139439215,-1436.03,0.00025205,2]
[320076364,1711139439224,-500.0,0.00025205,2]
[320076365,1711139439233,-500.0,0.00025205,2]
[320076366,1711139439242,-687.74,0.00025205,2]
[320076367,1711139439251,-668.47,0.00025205,2]
[320076368,1711139439260,-500.0,0.00025205,2]
[320076369,1711139439269,-500.0,0.00025205,2]
[320076370,1711139439278,-500.0,0.00025205,2]
[320076371,1711139439287,-2321.42,0.00025205,2]
[320076372,1711139439296,-500.0,0.00025205,2]
[320076373,1711139439305,-992.65,0.00025205,2]
[320076374,1711139439314,-500.0,0.00025205,2]
[320076375,1711139439326,-500.0,0.00025205,2]
[320076376,1711139439335,-980.47,0.00025205,2]
[320076377,1711139439345,-500.0,0.00025205,2]
[320076378,1711139439354,-500.0,0.00025205,2]
[320076379,1711139439364,-500.0,0.00025205,2]
[320076380,1711139439373,-500.0,0.00025205,2]
[320076381,1711139439382,-500.0,0.00025205,2]
[320076382,1711139439392,-500.0,0.00025205,2]
[320076383,1711139439402,-500.0,0.00025205,2]
[320076384,1711139439411,-500.0,0.00025205,2]
[320076385,1711139439421,-500.0,0.00025205,2]
[320076386,1711139439431,-3385.98,0.00025205,2]
[320076387,1711139439441,-7392.1,0.00025205,2]
[320076388,1711139439450,-500.0,0.00025205,2]
[320076389,1711139439460,-500.0,0.00025205,2]
[320076390,1711139439470,-518.43,0.00025205,2]
[320076391,1711139439479,-19098.96,0.00025205,2]
[320076392,1711139439490,-1540.11,0.00025205,2]
[320076393,1711139439499,-500.0,0.00025205,2]
[320076394,1711139439509,-500.0,0.00025205,2]
[320076395,1711139439519,-2260.02,0.00025205,2]
[320076396,1711139439529,-1430.37,0.00025205,2]
[320076397,1711139439538,-577.1,0.00025205,2]
[320076398,1711139439548,-500.0,0.00025205,2]
[320076399,1711139439558,-976.3,0.00025205,2]
[320076400,1711139439569,-14810.39,0.00025205,2]
[320076401,1711139439579,-500.0,0.00025205,2]
[320076402,1711139439589,-2773.5,0.00025205,2]
[320076403,1711139439599,-1130.23,0.00025205,2]
[320076404,1711139439610,-1360.28,0.00025205,2]
[320076405,1711139439620,-500.0,0.00025205,2]
[320076406,1711139439630,-1593.63,0.00025205,2]
[320076407,1711139439640,-1869.34,0.00025205,2]
[320076408,1711139439650,-500.0,0.00025205,2]
[320076409,1711139439660,-500.0,0.00025205,2]
[320076410,1711139439669,-500.0,0.00025205,2]
[320076411,1711139439679,-500.0,0.00025205,2]
[320076412,1711139439689,-500.0,0.00025205,2]
[320076413,1711139439699,-2501.98,0.00025205,2]
[320076414,1711139439708,-1586.3,0.00025205,2]
[320076415,1711139439718,-500.0,0.00025205,2]
[320076416,1711139439727,-1112.23,0.00025205,2]
[320076417,1711139439737,-15833.72,0.00025205,2]
[320076418,1711139439746,-500.0,0.00025205,2]
[320076419,1711139439755,-629.98,0.00025205,2]
[320076420,1711139439764,-500.0,0.00025205,2]
[320076421,1711139439774,-500.0,0.00025205,2]
[320076422,1711139439783,-500.0,0.00025205,2]
[320076423,1711139439792,-500.0,0.00025205,2]
[320076424,1711139439802,-1472.74,0.00025205,2]
[320076425,1711139439811,-3736.69,0.00025205,2]
[320076426,1711139439822,-500.0,0.00025205,2]
[320076427,1711139439831,-1155.26,0.00025205,2]
[320076428,1711139439839,-500.0,0.00025205,2]
[320076429,1711139439848,-500.0,0.00025205,2]
[320076430,1711139439857,-500.0,0.00025205,2]
[320076431,1711139439867,-500.0,0.00025205,2]
[320076432,1711139439877,-1173.64,0.00025205,2]
[320076433,1711139439886,-20662.85,0.00025205,2]
[320076434,1711139439896,-500.0,0.00025205,2]
[320076435,1711139439905,-1265.28,0.00025205,2]
[320076436,1711139439915,-500.0,0.00025205,2]
[320076437,1711139439924,-945.72856502,0.00025379,2]
[320076438,1711139439933,-151.80276999,0.00025612,2]
[320076439,1711139439942,-2465.79716642,0.00025653,2]
[320076440,1711139439952,-945.72856502,0.00025653,2]
[320076441,1711139439961,-15955.28,0.00025752,2]
[320076442,1711139439972,-500.0,0.00025752,2]
[320076443,1711139439981,-500.0,0.00025753,2]
[320076444,1711139439996,-500.0,0.00025753,2]
[320076445,1711139440006,-500.0,0.00025753,2]
[320076446,1711139440015,-528.14,0.00025753,2]
[320076447,1711139440025,-500.0,0.00025753,2]
[320076448,1711139440035,-829.22,0.00025753,2]
[320076449,1711139440044,-500.0,0.00025753,2]
[320076450,1711139440055,-500.0,0.00025753,2]
[320076451,1711139440065,-500.0,0.00025753,2]
[320076452,1711139440078,-264.11916319,0.00025753,2]
[320076453,1711139440090,-500.0,0.00025753,2]
[320076454,1711139440102,-1368.07,0.00025753,2]
[320076455,1711139440112,-552.16,0.00025753,2]
[320076456,1711139440123,-532.94,0.00025753,2]
[320076457,1711139440134,-500.0,0.00025753,2]
[320076458,1711139440145,-500.0,0.00025753,2]
[320076459,1711139440155,-500.0,0.00025753,2]
[320076460,1711139440165,-582.28,0.00025753,2]
[320076461,1711139440177,-633.51,0.00025753,2]
[320076462,1711139440187,-1436.03,0.00025753,2]
[320076463,1711139440197,-500.0,0.00025753,2]
[320076464,1711139440206,-500.0,0.00025753,2]
[320076465,1711139440216,-687.74,0.00025753,2]
[320076466,1711139440225,-668.47,0.00025753,2]
[320076474,1711139440343,-500.0,0.00025753,2]
[320076476,1711139440355,-500.0,0.00025753,2]
[320076478,1711139440365,-500.0,0.00025753,2]
[320076480,1711139440375,-2321.42,0.00025753,2]
[320076482,1711139440384,-500.0,0.00025753,2]
[320076484,1711139440394,-992.65,0.00025753,2]
[320076486,1711139440403,-500.0,0.00025753,2]
[320076488,1711139440413,-980.47,0.00025753,2]
[320076490,1711139440423,-500.0,0.00025753,2]
[320076493,1711139440432,-500.0,0.00025753,2]
[320076496,1711139440455,-500.0,0.00025753,2]
[320076498,1711139440465,-500.0,0.00025753,2]
[320076500,1711139440475,-500.0,0.00025753,2]
[320076502,1711139440485,-500.0,0.00025753,2]
[320076504,1711139440495,-500.0,0.00025753,2]
[320076506,1711139440505,-500.0,0.00025753,2]
[320076508,1711139440516,-500.0,0.00025753,2]
[320076510,1711139440528,-3385.98,0.00025753,2]
[320076512,1711139440538,-7392.1,0.00025753,2]
[320076514,1711139440549,-500.0,0.00025753,2]
[320076516,1711139440559,-292.72504949,0.00025753,2]
[320076518,1711139440572,-518.43,0.00025753,2]
[320076520,1711139440582,-19098.96,0.00025753,2]
[320076522,1711139440593,-1540.11,0.00025753,2]
[320076525,1711139440603,-500.0,0.00025753,2]
[320076527,1711139440613,-500.0,0.00025753,2]
[320076529,1711139440624,-2260.02,0.00025753,2]
[320076531,1711139440636,-1430.37,0.00025753,2]
[320076533,1711139440647,-577.1,0.00025753,2]
[320076535,1711139440657,-500.0,0.00025753,2]
[320076537,1711139440667,-976.3,0.00025753,2]
[320076539,1711139440678,-14810.39,0.00025753,2]
[320076541,1711139440688,-2773.5,0.00025753,2]
[320076543,1711139440698,-500.0,0.00025753,2]
[320076545,1711139440708,-1130.23,0.00025753,2]
[320076547,1711139440718,-1360.28,0.00025753,2]
[320076549,1711139440729,-500.0,0.00025753,2]
[320076551,1711139440739,-1593.63,0.00025753,2]
[320076553,1711139440749,-1869.34,0.00025753,2]
[320076555,1711139440760,-500.0,0.00025753,2]
[320076557,1711139440770,-500.0,0.00025753,2]
[320076559,1711139440780,-500.0,0.00025753,2]
[320076561,1711139440790,-500.0,0.00025753,2]
[320076563,1711139440800,-500.0,0.00025753,2]
[320076564,1711139440810,-2501.98,0.00025753,2]
[320076567,1711139440819,-1586.3,0.00025753,2]
[320076568,1711139440837,-500.0,0.00025753,2]
[320076571,1711139440847,-1112.23,0.00025753,2]
[320076572,1711139440857,-15833.72,0.00025753,2]
[320076575,1711139440867,-500.0,0.00025753,2]
[320076577,1711139440877,-629.98,0.00025753,2]
[320076579,1711139440888,-500.0,0.00025753,2]
[320076581,1711139440898,-500.0,0.00025753,2]
[320076583,1711139440908,-500.0,0.00025753,2]
[320076585,1711139440919,-500.0,0.00025753,2]
[320076587,1711139440930,-1472.74,0.00025753,2]
[320076589,1711139440940,-3736.69,0.00025753,2]
[320076591,1711139440950,-1155.26,0.00025753,2]
[320076593,1711139440961,-500.0,0.00025753,2]
[320076595,1711139440971,-500.0,0.00025753,2]
[320076597,1711139440981,-500.0,0.00025753,2]
[320076599,1711139440992,-563.6910901,0.00025753,2]
[320076601,1711139441006,-1173.64,0.00025753,2]
[320076603,1711139441016,-20662.85,0.00025753,2]
[320076605,1711139441027,-500.0,0.00025753,2]
[320076607,1711139441038,-1265.28,0.00025753,2]
[320076609,1711139441048,-500.0,0.00025753,2]
[320076611,1711139441059,-1500.0,0.00026,2]
[320076613,1711139441075,-322.94622818,0.00026299,2]
[320076615,1711139441087,-358.95943651,0.00026299,2]
[320076617,1711139441098,-15955.28,0.000263,2]
[320076619,1711139441109,-500.0,0.000263,2]
[320076622,1711139441120,-500.0,0.00026301,2]
[320076624,1711139441131,-500.0,0.00026301,2]
[320076626,1711139441142,-500.0,0.00026301,2]
[320076628,1711139441153,-528.14,0.00026301,2]
[320076630,1711139441163,-500.0,0.00026301,2]
[320076632,1711139441174,-829.22,0.00026301,2]
[320076634,1711139441186,-500.0,0.00026301,2]
[320076636,1711139441196,-500.0,0.00026301,2]
[320076637,1711139441207,-209.72640167,0.00026301,2]
[320076640,1711139441217,-1368.07,0.00026301,2]
[320076641,1711139441227,-552.16,0.00026301,2]
[320076643,1711139441237,-532.94,0.00026301,2]
[320076646,1711139441250,-500.0,0.00026301,2]
[320076648,1711139441259,-500.0,0.00026301,2]
[320076650,1711139441268,-500.0,0.00026301,2]
[320076652,1711139441280,-582.28,0.00026301,2]
[320076654,1711139441290,-633.51,0.00026301,2]
[320076656,1711139441300,-1436.03,0.00026301,2]
[320076658,1711139441310,-553.7,0.00026301,2]
[320076660,1711139441328,-500.0,0.00026301,2]
[320076662,1711139441338,-687.74,0.00026301,2]
[320076664,1711139441350,-668.47,0.00026301,2]
[320076666,1711139441360,-500.0,0.00026301,2]
[320076668,1711139441369,-500.0,0.00026301,2]
[320076670,1711139441379,-500.0,0.00026301,2]
[320076672,1711139441389,-2321.42,0.00026301,2]
[320076674,1711139441399,-500.0,0.00026301,2]
[320076676,1711139441408,-992.65,0.00026301,2]
[320076678,1711139441418,-500.0,0.00026301,2]
[320076680,1711139441428,-980.47,0.00026301,2]
[320076682,1711139441437,-500.0,0.00026301,2]
[320076684,1711139441446,-500.0,0.00026301,2]
[320076686,1711139441456,-500.0,0.00026301,2]
[320076688,1711139441465,-500.0,0.00026301,2]
[320076690,1711139441475,-500.0,0.00026301,2]
[320076692,1711139441485,-500.0,0.00026301,2]
[320076694,1711139441495,-500.0,0.00026301,2]
[320076696,1711139441504,-500.0,0.00026301,2]
[320076698,1711139441514,-347.26720316,0.00026301,2]
[320076700,1711139441524,-3385.98,0.00026301,2]
[320076702,1711139441534,-7392.1,0.00026301,2]
[320076704,1711139441544,-500.0,0.00026301,2]
[320076706,1711139441554,-518.43,0.00026301,2]
[320076708,1711139441564,-19098.96,0.00026301,2]
[320076710,1711139441580,-1540.11,0.00026301,2]
[320076712,1711139441589,-500.0,0.00026301,2]
[320076714,1711139441599,-500.0,0.00026301,2]
[320076716,1711139441608,-2260.02,0.00026301,2]
[320076718,1711139441617,-1430.37,0.00026301,2]
[320076720,1711139441627,-577.1,0.00026301,2]
[320076722,1711139441637,-500.0,0.00026301,2]
[320076724,1711139441647,-14810.39,0.00026301,2]
[320076726,1711139441657,-976.3,0.00026301,2]
[320076728,1711139441667,-2773.5,0.00026301,2]
[320076730,1711139441678,-500.0,0.00026301,2]
[320076732,1711139441687,-1130.23,0.00026301,2]
[320076734,1711139441699,-1360.28,0.00026301,2]
[320076736,1711139441709,-500.0,0.00026301,2]
[320076738,1711139441719,-1593.63,0.00026301,2]
[320076740,1711139441729,-1869.34,0.00026301,2]
[320076742,1711139441738,-500.0,0.00026301,2]
[320076744,1711139441749,-290.32762425,0.00026301,2]
[320076746,1711139441760,-500.0,0.00026301,2]
[320076748,1711139441770,-500.0,0.00026301,2]
[320076750,1711139441781,-500.0,0.00026301,2]
[320076752,1711139441792,-2501.98,0.00026301,2]
[320076754,1711139441802,-1586.3,0.00026301,2]
[320076756,1711139441812,-500.0,0.00026301,2]
[320076758,1711139441825,-1112.23,0.00026301,2]
[320076760,1711139441835,-15833.72,0.00026301,2]
[320076762,1711139441846,-500.0,0.00026301,2]
[320076764,1711139441855,-500.0,0.00026301,2]
[320076766,1711139441865,-629.98,0.00026301,2]
[320076768,1711139441876,-500.0,0.00026301,2]
[320076770,1711139441886,-500.0,0.00026301,2]
[320076772,1711139441897,-500.0,0.00026301,2]
[320076774,1711139441907,-1472.74,0.00026301,2]
[320076776,1711139441918,-3736.69,0.00026301,2]
[320076778,1711139441931,-1155.26,0.00026301,2]
[320076780,1711139441943,-500.0,0.00026301,2]
[320076783,1711139441953,-500.0,0.00026301,2]
[320076785,1711139441963,-500.0,0.00026301,2]
[320076787,1711139441975,-1173.64,0.00026301,2]
[320076789,1711139441985,-20662.85,0.00026301,2]
[320076791,1711139441997,-500.0,0.00026301,2]
[320076793,1711139442008,-1265.28,0.00026301,2]
[320076795,1711139442018,-500.0,0.00026301,2]
[320076797,1711139442030,-153.0,0.00026329,2]
[320076799,1711139442040,-306.0,0.00026603,2]
[320076801,1711139442050,-306.2103796,0.00026603,2]
[320076803,1711139442061,-1500.0,0.00026749,2]
[320076805,1711139442074,-15955.28,0.00026848,2]
[320076807,1711139442083,-500.0,0.00026848,2]
[320076809,1711139442094,-500.0,0.00026849,2]
[320076811,1711139442105,-281.56254263,0.00026849,2]
[320076813,1711139442116,-500.0,0.00026849,2]
[320076815,1711139442126,-528.14,0.00026849,2]
[320076817,1711139442136,-500.0,0.00026849,2]
[320076819,1711139442146,-829.22,0.00026849,2]
[320076821,1711139442155,-500.0,0.00026849,2]
[320076823,1711139442164,-500.0,0.00026849,2]
[320076825,1711139442174,-1368.07,0.00026849,2]
[320076827,1711139442184,-552.16,0.00026849,2]
[320076829,1711139442194,-532.94,0.00026849,2]
[320076831,1711139442204,-500.0,0.00026849,2]
[320076833,1711139442213,-500.0,0.00026849,2]
[320076835,1711139442223,-500.0,0.00026849,2]
[320076837,1711139442232,-582.28,0.00026849,2]
[320076838,1711139442242,-633.51,0.00026849,2]
[320076839,1711139442253,-1436.03,0.00026849,2]
[320076840,1711139442263,-594.33595288,0.00026849,2]
[320076841,1711139442272,-687.74,0.00026849,2]
[320076842,1711139442282,-668.47,0.00026849,2]
[320076843,1711139442292,-500.0,0.00026849,2]
[320076844,1711139442303,-587.77,0.00026849,2]
[320076845,1711139442315,-500.0,0.00026849,2]
[320076846,1711139442331,-2321.42,0.00026849,2]
[320076847,1711139442341,-500.0,0.00026849,2]
[320076848,1711139442351,-992.65,0.00026849,2]
[320076849,1711139442362,-500.0,0.00026849,2]
[320076850,1711139442372,-980.47,0.00026849,2]
[320076851,1711139442382,-500.0,0.00026849,2]
[320076852,1711139442392,-500.0,0.00026849,2]
[320076853,1711139442415,-500.0,0.00026849,2]
[320076854,1711139442425,-500.0,0.00026849,2]
[320076855,1711139442435,-500.0,0.00026849,2]
[320076856,1711139442446,-500.0,0.00026849,2]
[320076857,1711139442457,-500.0,0.00026849,2]
[320076858,1711139442467,-500.0,0.00026849,2]
[320076860,1711139442477,-3385.98,0.00026849,2]
[320076862,1711139442487,-7392.1,0.00026849,2]
[320076864,1711139442497,-500.0,0.00026849,2]
[320076866,1711139442507,-518.43,0.00026849,2]
[320076868,1711139442517,-19098.96,0.00026849,2]
[320076871,1711139442527,-1540.11,0.00026849,2]
[320076873,1711139442537,-500.0,0.00026849,2]
[320076874,1711139442546,-500.0,0.00026849,2]
[320076876,1711139442556,-2260.02,0.00026849,2]
[320076878,1711139442566,-1430.37,0.00026849,2]
[320076880,1711139442581,-577.1,0.00026849,2]
[320076882,1711139442591,-500.0,0.00026849,2]
[320076884,1711139442601,-14810.39,0.00026849,2]
[320076887,1711139442612,-976.3,0.00026849,2]
[320076889,1711139442623,-2773.5,0.00026849,2]
[320076891,1711139442634,-500.0,0.00026849,2]
[320076893,1711139442644,-1130.23,0.00026849,2]
[320076894,1711139442654,-1360.28,0.00026849,2]
[320076896,1711139442664,-500.0,0.00026849,2]
[320076898,1711139442675,-1593.63,0.00026849,2]
[320076901,1711139442685,-1869.34,0.00026849,2]
[320076902,1711139442696,-500.0,0.00026849,2]
[320076905,1711139442706,-500.0,0.00026849,2]
[320076907,1711139442717,-468.0,0.00026849,2]
[320076909,1711139442727,-500.0,0.00026849,2]
[320076911,1711139442736,-2501.98,0.00026849,2]
[320076913,1711139442746,-1586.3,0.00026849,2]
[320076915,1711139442755,-500.0,0.00026849,2]
[320076917,1711139442765,-1112.23,0.00026849,2]
[320076919,1711139442774,-15833.72,0.00026849,2]
[320076921,1711139442783,-500.0,0.00026849,2]
[320076922,1711139442794,-500.0,0.00026849,2]
[320076924,1711139442804,-629.98,0.00026849,2]
[320076927,1711139442814,-500.0,0.00026849,2]
[320076929,1711139442829,-621.56647835,0.00026849,2]
[320076930,1711139442839,-500.0,0.00026849,2]
[320076932,1711139442849,-1472.74,0.00026849,2]
[320076934,1711139442859,-3736.69,0.00026849,2]
[320076936,1711139442868,-1155.26,0.00026849,2]
[320076939,1711139442879,-435.21989506,0.00026849,2]
[320076941,1711139442888,-500.0,0.00026849,2]
[320076942,1711139442898,-500.0,0.00026849,2]
[320076944,1711139442908,-1173.64,0.00026849,2]
[320076947,1711139442919,-20662.85,0.00026849,2]
[320076949,1711139442928,-500.0,0.00026849,2]
[320076951,1711139442937,-1265.28,0.00026849,2]
[320076953,1711139442948,-500.0,0.00026849,2]
[320076955,1711139442958,-7752.82337168,0.00027,2]
[320076957,1711139442967,-1618.86114083,0.00027,2]
[320076959,1711139442976,-62656.04721274,0.00027,2]
[320080851,1711140428068,-689.76839438,0.00029,30]
[320080852,1711140428107,-150.5,0.0002997,35]
[320080853,1711140428133,-150.5,0.0002998,35]
[320080854,1711140428323,-16397.64626092,0.00029988,30]
[320080855,1711140428349,-150.5,0.0002999,35]
[320080856,1711140428378,-5971.0,0.0003,30]
[320080857,1711140428403,-150.5,0.00030116,35]
[320080858,1711140428427,-164.48,0.00030116,35]
[320080859,1711140428450,-165.01,0.00030116,35]
[320080860,1711140428474,-150.5,0.00030126,35]
[320080861,1711140428497,-150.5,0.00030126,35]
[320080862,1711140428519,-150.5,0.00030126,35]
[320080863,1711140428578,-175.12065411,0.00035,30]
[320080864,1711140428608,-1404.879444,0.00035616,120]
[320080865,1711140428637,-1092.24110598,0.0003707,31]
[320080866,1711140428662,-162.50184426,0.00039768,120]
[320080867,1711140428685,-194.38,0.00039989,35]
[320080868,1711140428708,-709.30316949,0.00039999,31]
[320080869,1711140428732,-709.30316949,0.00039999,31]
[320080870,1711140428755,-709.30316949,0.00039999,31]
[320080871,1711140428779,-709.30316949,0.00039999,31]
[320080872,1711140428802,-709.30316949,0.00039999,31]
[320080873,1711140428830,-709.30316949,0.00039999,31]
[320080874,1711140428854,-709.30316949,0.00039999,31]
[320080875,1711140428878,-709.30316949,0.00039999,31]
[320080876,1711140428903,-709.30316949,0.00039999,31]
[320080877,1711140428925,-709.30316949,0.00039999,31]
[320080878,1711140428950,-709.30316949,0.00039999,31]
[320080879,1711140428973,-709.30316949,0.00039999,31]
[320080880,1711140428996,-709.30316949,0.00039999,31]
[320080881,1711140429019,-709.30316949,0.00039999,31]
[320080882,1711140429042,-709.30316949,0.00039999,31]
[320080883,1711140429065,-709.30316949,0.00039999,31]
[320080884,1711140429087,-709.30316949,0.00039999,31]
[320080885,1711140429113,-709.30316949,0.00039999,31]
[320080886,1711140429135,-709.30316949,0.00039999,31]
[320080887,1711140429158,-709.30316949,0.00039999,31]
[320080888,1711140429182,-709.30316949,0.00039999,31]
[320080889,1711140429205,-709.30316949,0.00039999,31]
[320080890,1711140429229,-709.30316949,0.00039999,31]
[320080891,1711140429252,-506.03685547,0.00039999,31]
[320080892,1711140429274,-709.30316949,0.00039999,31]
[320080893,1711140429296,-709.30316949,0.00039999,31]
[320080894,1711140429322,-506.03685547,0.00039999,31]
[320080895,1711140429346,-506.03685547,0.00039999,31]
[320080896,1711140429369,-506.03685547,0.00039999,31]
[320080897,1711140429394,-506.03685547,0.00039999,31]
[320080898,1711140429418,-506.03685547,0.00039999,31]
[320080899,1711140429442,-506.03685547,0.00039999,31]
[320080900,1711140429465,-506.03685547,0.00039999,31]
[320080901,1711140429489,-506.03685547,0.00039999,31]
[320080902,1711140429511,-756.59004747,0.00039999,31]
[320080903,1711140429538,-756.59004747,0.00039999,31]
[320080904,1711140429560,-756.59004747,0.00039999,31]
[320080905,1711140429583,-756.59004747,0.00039999,31]
[320080906,1711140429606,-756.59004747,0.00039999,31]
[320080907,1711140429630,-756.59004747,0.00039999,31]
[320080908,1711140429653,-756.59004747,0.00039999,31]
[320080909,1711140429675,-756.59004747,0.00039999,31]
[320080910,1711140429698,-756.59004747,0.00039999,31]
[320080911,1711140429722,-506.03685547,0.00039999,31]
[320080912,1711140429751,-506.03685547,0.00039999,31]
[320080913,1711140429775,-506.03685547,0.00039999,31]
[320080914,1711140429800,-10943.28974118,0.0004,30]
[320080915,1711140429822,-10000.0,0.0004,30]
[320080916,1711140429844,-6262.23103899,0.0004,90]
[320080917,1711140429867,-5146.19050858,0.0004,30]
[320080918,1711140429891,-2000.0,0.00041,30]
[320080919,1711140429914,-2000.0,0.0004101,30]
[320080920,1711140429936,-2000.0,0.0004102,30]
[320080921,1711140429959,-2314.150266,0.0004103,30]
[320080922,1711140429982,-373.30141735,0.00041038,30]
[320080923,1711140430006,-500.0,0.00041095,120]
[320080924,1711140430028,-500.0,0.00041095,120]
[320080925,1711140430050,-375.94940372,0.00041095,120]
[320080926,1711140430075,-373.30141735,0.00041426,30]
[320080927,1711140430098,-373.30141735,0.00041455,30]
[320080929,1711140430121,-1404.879444,0.00041553,120]
[320080930,1711140430143,-425.15175264,0.0004189,30]
[320080931,1711140430165,-425.15175264,0.00041936,30]
[320080932,1711140430187,-1350.84,0.00042,30]
[320080933,1711140430209,-142305.09998393,0.00042,120]
[320080934,1711140430231,-38524.13602511,0.00042,120]
[320080935,1711140430253,-997.0,0.00042281,30]
[320080936,1711140430275,-425.15175264,0.00042412,30]
[320080937,1711140430300,-373.30141735,0.00042583,30]
[320080938,1711140430327,-373.30141735,0.00042654,30]